Cogmind - Beta 13 @@@ ROGUE MODE // 2024.04.08 @ 18:48:40 Player: BoomBlip Result: Destroyed by P-70 Sage with High-powered Shock Rifle Performance ------------- Evolutions (6) 3000 Regions Visited (14) 2800 Robots Destroyed (77) 385 Value Destroyed (2655) 2655 Prototype IDs (6) 120 Alien Tech Used (0) 0 Bonus (722) 722 TOTAL SCORE: 9682 Bonus ------- High Alert Combat Kills 100 Follower Combat Kills 382 Entered Garrisons 200 Aligned with FarCom 300 Friendly Fire -260 Cogmind --------- Core Integrity 0/1150 Matter 89/300 Energy 99/100 System Corruption 1% Temperature Cool (2) Movement Flying (40) Location -4/Factory Parts ------- > --- POWER (1) -------- (None) > --- PROPULSION (4) --- Cooled Field Propulsion Drive > --- UTILITY (11) ----- (None) > --- WEAPON (3) ------- (None) > --- INVENTORY (5) ---- Improved Linear Gravjet Improved Arc Projector Micro-nuke Launcher Peak State ------------ > --- POWER ------------ Light Angular Momentum Engine > --- PROPULSION ------- Flexi-carbon Leg Flexi-carbon Leg Compact Wheel > --- UTILITY ---------- Cryofiber Web Advanced Heat Sink Advanced Heat Sink Advanced Heat Sink High-capacity Storage Unit Improved Trap Scanner Visual Processing Unit Improved Targeting Computer Advanced Targeting Computer Improved Force Field Hacking Suite > --- WEAPON ----------- Wave Gun KE Penetrator Mini Assault Cannon > --- INVENTORY -------- Improved Deuterium Engine Light Angular Momentum Engine Improved Linear Gravjet Large Storage Unit Improved Sensor Array Advanced Beam Rifle Heavy Laser Heavy Laser Improved Spread Laser Heavy Assault Rifle KE Penetrator Flak Cannon Advanced Assault Cannon Advanced Assault Cannon Heavy Rocket Launcher Precision Grenade Launcher Heavy Mace Phasing Sabre [Rating: 81] Favorites ----------- Power Improved Ion Engine Engine Improved Ion Engine Power Core Micro Nuclear Core Reactor Antimatter Reactor Propulsion Compact Wheel Leg Flexi-carbon Leg Wheel Compact Wheel Flight Unit Cooled Field Propulsion Drive Utility Advanced Heat Sink Device Advanced Heat Sink Storage High-capacity Storage Unit Processor Advanced Targeting Computer Hackware Hacking Suite Protection Improved Light Armor Plating Weapon Mini Assault Cannon Energy Gun Improved Spread Laser Energy Cannon Guided Plasma Cannon Ballistic Gun Heavy Assault Rifle Ballistic Cannon Mini Assault Cannon Launcher Heavy Rocket Launcher Build | -11 -10 -10 -9 -9 -9 -8 -8 -7 -6 -5 -5 -4 -4 -4 ------- Run | Yrd Mat Min Mat Min Exi Min Mat Fac Fac Fac Gar Fac Was Fac Slots Evolved 12 | . . . 2 . . . 2 2 2 2 . 2 . . Power . | . . . . . . . . . . . . . . . Propulsion 2 | . . . 1 . . . . . 1 . . . . . Utility 9 | . . . 1 . . . 2 1 1 2 . 2 . . Weapon 1 | . . . . . . . . 1 . . . . . . Parts Attached 97 | . 3 7 13 . 4 . 8 15 2 2 29 7 1 6 Power 13 | . . . 2 . . . 1 1 1 . 6 1 . 1 Engine 7 | . . . 2 . . . . . . . 4 1 . . Core 5 | . . . . . . . 1 1 1 . 2 . . . Reactor 1 | . . . . . . . . . . . . . . 1 Propulsion 20 | . . 2 1 . . . . 9 . 1 5 . . 2 Treads . | . . . . . . . . . . . . . . . Leg 2 | . . . . . . . . . . . 2 . . . Wheel 16 | . . 2 1 . . . . 9 . 1 3 . . . Hover . | . . . . . . . . . . . . . . . Flight 2 | . . . . . . . . . . . . . . 2 Utility 34 | . 2 3 5 . 3 . 2 3 1 1 11 3 . . Device 14 | . . 1 3 . . . 2 . . . 7 1 . . Storage 3 | . 1 . . . 2 . . . . . . . . . Processor 4 | . . . . . . . . 2 . . 1 1 . . Hackware 1 | . . . . . . . . . . . . 1 . . Protection 12 | . 1 2 2 . 1 . . 1 1 1 3 . . . Artifact . | . . . . . . . . . . . . . . . Weapon 30 | . 1 2 5 . 1 . 5 2 . . 7 3 1 3 Energy Gun 15 | . 1 1 2 . . . 4 1 . . 3 2 . 1 Energy Cannon 3 | . . . . . 1 . 1 . . . 1 . . . Ballistic Gun 8 | . . 1 3 . . . . . . . 1 1 . 2 Ballistic Cannon 2 | . . . . . . . . 1 . . 1 . . . Launcher 2 | . . . . . . . . . . . 1 . 1 . Special Weapon . | . . . . . . . . . . . . . . . Impact Weapon . | . . . . . . . . . . . . . . . Slashing Weapon . | . . . . . . . . . . . . . . . Piercing Weapon . | . . . . . . . . . . . . . . . Special Melee Weapon . | . . . . . . . . . . . . . . . Unidentified Prototypes 6 | . . . . . 1 . 1 2 . . . . 1 1 Parts Lost 38 | . . . 2 1 . . . . . . 19 15 . 1 Power 5 | . . . . . . . . . . . 3 2 . . Propulsion 8 | . . . 1 . . . . . . . 4 3 . . Utility 18 | . . . 1 1 . . . . . . 9 7 . . Weapon 7 | . . . . . . . . . . . 3 3 . 1 Highest Loss Streak 15 | . . . 2 1 . . . . . . 5 15 . 1 To Critical Strikes . | . . . . . . . . . . . . . . . Average Slot Usage (%) 82 | . 99 99 85 77 85 88 74 96 89 94 80 76 . 10 Engine 6 | . 14 14 11 11 11 11 4 . . . 4 4 . . Core 1 | . . . . . . . 4 7 6 5 . . . . Leg 4 | . 28 15 . . . . . . . . 3 9 . . Wheel 13 | . . 12 20 22 22 22 18 21 20 23 10 4 . . Device 12 | . . . 9 11 11 11 11 16 13 11 19 24 . . Storage 8 | . 14 14 11 11 11 11 9 7 6 5 5 4 . . Processor 5 | . . . . . . . . 12 13 11 13 10 . . Protection 6 | . 13 13 11 . 8 11 9 7 9 17 4 . . . Energy Gun 7 | . 14 14 14 11 2 . 2 13 6 5 4 4 . 1 Energy Cannon 3 | . . . . . 8 11 9 7 6 5 2 . . . Ballistic Gun 5 | . 14 13 7 11 11 11 6 . . . 1 3 . 3 Ballistic Cannon 1 | . . . . . . . . 1 6 5 5 4 . . Naked Turns 164 | . . . . . . . . . . . . 41 35 88 Heaviest Build 84 | 11 27 40 42 35 65 65 65 72 79 84 84 82 . 31 Greatest Support 52 | 20 20 32 32 26 26 26 26 48 30 40 52 40 3 7 Greatest Overweight (x) 22 | . 1 2 2 1 2 2 2 2 2 2 4 22 . 10 Average Overweight (x) 1 | . . 1 1 1 1 2 2 1 2 2 1 . . . Largest Inventory Capacity 20 | 8 15 15 15 15 20 20 20 20 20 20 20 20 5 5 Average Capacity 17 | 8 11 15 15 15 15 20 20 20 20 20 20 18 5 5 Most Carried 20 | 6 8 15 15 15 15 15 20 20 20 19 20 18 5 5 Average Carried 15 | 6 7 12 14 14 14 15 17 19 19 18 17 16 4 4 Final Capacity 20 | 8 15 15 15 15 20 20 20 20 20 20 20 5 5 5 Final Carried 20 | 6 8 15 15 15 15 15 20 20 20 18 18 5 4 3 Class Distribution -------------------- 50% | Mutant 26% | Scavenger-Skirmisher 9% | Scavenger-Gunner 5% | Scavenger-Tank 5% | Skirmisher Dominant Class ---------------- Mutant | -10/Materials Mutant | -10/Mines Mutant | -9/Materials Mutant | -9/Mines Mutant | -9/Exiles Mutant | -8/Mines Mutant | -8/Materials Scavenger-Skirmisher | -7/Factory Scavenger-Skirmisher | -6/Factory Scavenger-Tank | -5/Factory Scavenger-Skirmisher | -5/Garrison Scavenger-Skirmisher | -4/Factory Mutant | -4/Waste Mutant | -4/Factory Resources | -11 -10 -10 -9 -9 -9 -8 -8 -7 -6 -5 -5 -4 -4 -4 ----------- Run | Yrd Mat Min Mat Min Exi Min Mat Fac Fac Fac Gar Fac Was Fac Matter Collected 1875 | 200 40 166 147 49 . . 112 140 34 . 984 3 . . Remotely . | . . . . . . . . . . . . . . . Salvage Created 3130 | . 40 153 194 125 . . 747 372 332 . 1167 . . . Parts 120 | . 3 12 16 5 . . 27 18 10 . 29 . . . Haulers Intercepted 3 | . 1 . . . . . 1 1 . . . . . . Recyclers Shooed 2 | . . . 1 . . . . 1 . . . . . . Parts Field Recycled . | . . . . . . . . . . . . . . . Retrieved Matter . | . . . . . . . . . . . . . . . Parts Self-Destructed . | . . . . . . . . . . . . . . . Prevented . | . . . . . . . . . . . . . . . Kills | -11 -10 -10 -9 -9 -9 -8 -8 -7 -6 -5 -5 -4 -4 -4 ------- Run | Yrd Mat Min Mat Min Exi Min Mat Fac Fac Fac Gar Fac Was Fac Combat Hostiles Destroyed 56 | . . 8 4 3 . . 11 3 3 . 24 . . . Guns 22 | . . 8 4 3 . . . 3 . . 4 . . . Cannons 29 | . . . . . . . 11 . 3 . 15 . . . AOE 4 | . . . . . . . . . . . 4 . . . Classes Destroyed 11 | . 1 2 2 . . . 3 1 1 . 1 . . . Worker 9 | . . . . . . . 1 7 1 . . . . . Builder 3 | . . . 1 . . . 1 1 . . . . . . Hauler 3 | . 1 . . . . . 1 1 . . . . . . Recycler 2 | . . . . . . . . 1 1 . . . . . Operator 1 | . . . . . . . 1 . . . . . . . Watcher 1 | . . . . . . . 1 . . . . . . . Swarmer 16 | . . 6 1 . . . . . . . 9 . . . Grunt 27 | . . 2 . 3 . . 9 3 1 . 9 . . . Sentry 10 | . . . 3 . . . 2 . 1 . 4 . . . Hunter 4 | . . . . . . . . . 2 . 2 . . . Programmer 1 | . . . . . . . . . . . 1 . . . Best Kill Streak 5 | . 1 3 2 3 . . 4 5 2 . 5 . . . Combat Bots Only 5 | . . 3 2 3 . . 3 2 1 . 5 . . . Max Kills in Single Turn 3 | . 1 1 1 2 . . 1 2 1 . 3 . . . Gunslinging 1 | . . . . 1 . . . 1 . . . . . . Exploded 3 | . . . . . . . . . . . 3 . . . Melee . | . . . . . . . . . . . . . . . Uniques/NPCs Destroyed . | . . . . . . . . . . . . . . . Combat | -11 -10 -10 -9 -9 -9 -8 -8 -7 -6 -5 -5 -4 -4 -4 -------- Run | Yrd Mat Min Mat Min Exi Min Mat Fac Fac Fac Gar Fac Was Fac Hostile Shots Fired 471 | . . 23 48 15 . . 10 4 27 . 181 104 2 57 Missed 123 | . . 5 9 3 . . 1 2 7 . 44 31 1 20 Damage Taken 6473 | . . 283 470 147 . . 204 33 207 . 2591 1798 33 707 Core 1759 | . . 95 69 22 . . 30 . 44 . 338 805 33 323 Absorbed by Shields 293 | . . . . . . . . 7 131 . 143 12 . . Redirected to Shielding 20 | . . 20 . . . . . . . . . . . . Ignored by Resistances 27 | . . . 27 . . . . . . . . . . . Core Remaining (%) 84 | 100 . 62 . . . 77 94 100 94 . 66 . . . Volleys Fired 239 | . 9 20 23 6 . . 36 20 18 . 87 15 . 5 Largest 3 | . 2 2 2 2 . . 1 2 1 . 3 3 . 3 Hottest 198 | . 60 95 140 79 . . 120 136 120 . 198 162 . 137 Shots Fired 454 | . 19 40 44 12 . . 36 32 18 . 218 21 . 14 Gun 268 | . 19 40 44 12 . . 1 31 2 . 99 6 . 14 Cannon 183 | . . . . . . . 35 1 16 . 116 15 . . Launcher 3 | . . . . . . . . . . . 3 . . . Special . | . . . . . . . . . . . . . . . Kinetic 193 | . 9 20 19 6 . . . 1 . . 110 18 . 10 Thermal 258 | . 10 20 25 6 . . 36 31 18 . 105 3 . 4 Explosive 3 | . . . . . . . . . . . 3 . . . Electromagnetic . | . . . . . . . . . . . . . . . Robot Hit Streak 48 | . 3 5 8 5 . . 26 31 16 . 48 14 . 8 Robot Miss Streak 5 | . 4 4 5 1 . . . 3 1 . 3 2 . 1 Penetration Max 1 | . . . . . . . . . . . 1 . . 1 Secondary Targets 4 | . . . 2 1 . . . 1 . . . . . . Max Gunslinging Chain 1 | . . . 1 1 . . . 1 . . . . . . Shots Hit Robots 309 | . 10 17 30 8 . . 21 25 11 . 169 7 . 11 Core Hits 171 | . 2 11 9 5 . . 17 33 10 . 81 1 . 2 Critical Kills . | . . . . . . . . . . . . . . . Critical Parts Destroyed . | . . . . . . . . . . . . . . . Critical Strikes 13 | . . . . . . . . 1 . . 12 . . . Burn 2 | . . . . . . . . 1 . . 1 . . . Destroy 1 | . . . . . . . . . . . 1 . . . Blast 10 | . . . . . . . . . . . 10 . . . Melee Attacks . | . . . . . . . . . . . . . . . Impact . | . . . . . . . . . . . . . . . Slashing . | . . . . . . . . . . . . . . . Piercing . | . . . . . . . . . . . . . . . Sneak Attacks . | . . . . . . . . . . . . . . . Combat Hostiles . | . . . . . . . . . . . . . . . Follow-up Attacks . | . . . . . . . . . . . . . . . Damage Inflicted 8363 | . 125 228 472 136 . . 1292 661 597 . 4368 211 . 273 Guns 3515 | . 121 228 462 136 . . . 601 33 . 1518 143 . 273 Cannons 4430 | . . . . . . . 1276 30 564 . 2492 68 . . Explosions 358 | . . . . . . . . . . . 358 . . . Melee . | . . . . . . . . . . . . . . . Ramming 60 | . 4 . 10 . . . 16 30 . . . . . . Kinetic 2958 | . 65 148 208 78 . . . 30 . . 2111 124 . 194 Thermal 4987 | . 56 80 254 58 . . 1276 601 597 . 1899 87 . 79 Explosive 358 | . . . . . . . . . . . 358 . . . Electromagnetic . | . . . . . . . . . . . . . . . Impact . | . . . . . . . . . . . . . . . Slashing . | . . . . . . . . . . . . . . . Piercing . | . . . . . . . . . . . . . . . Highest Corruption 4 | . 2 2 . . . . . . . . 4 1 1 1 Average Corruption 2 | . 2 2 . . . . . . . . 3 1 1 1 Corruption Purged . | . . . . . . . . . . . . . . . Corruption Blocked . | . . . . . . . . . . . . . . . Effects 45 | . 4 7 . . . . . . . . 29 . . 5 Message Errors 12 | . 1 2 . . . . . . . . 8 . . 1 Matter Fused 9 | . 1 2 . . . . . . . . 5 . . 1 Heat Flow Errors 6 | . . 1 . . . . . . . . 5 . . . Energy Discharges 4 | . . 1 . . . . . . . . 2 . . 1 Parts Rejected 1 | . 1 . . . . . . . . . . . . . Parts Fused 1 | . . 1 . . . . . . . . . . . . Data Loss (minor) 3 | . . . . . . . . . . . 2 . . 1 Data Loss (major) 5 | . . . . . . . . . . . 4 . . 1 Misfires 2 | . 1 . . . . . . . . . 1 . . . Alerts 1 | . . . . . . . . . . . 1 . . . Weapon Failures 1 | . . . . . . . . . . . 1 . . . Overload Shots . | . . . . . . . . . . . . . . . Overflow Damage 218 | . . . . . . . 58 . 3 . 157 . . . Projectiles 137 | . . . . . . . 58 . 3 . 76 . . . Explosions 81 | . . . . . . . . . . . 81 . . . Melee . | . . . . . . . . . . . . . . . Knockbacks 15 | . . . . . . . . 1 . . 13 1 . . Impact 1 | . . . . . . . . 1 . . . . . . Kinetic 14 | . . . . . . . . . . . 13 1 . . Secondary . | . . . . . . . . . . . . . . . Self-Inflicted Damage 26 | . . . 5 . . . 7 14 . . . . . . Shots . | . . . . . . . . . . . . . . . Rammed 6 | . . . 1 . . . 2 3 . . . . . . Targets Rammed 7 | . 1 . 1 . . . 2 3 . . . . . . Kicked 1 | . 1 . . . . . . . . . . . . . Crushed . | . . . . . . . . . . . . . . . Highest Temperature 608 | . 2 219 225 6 . . 301 57 16 . 608 296 . 186 Average Temperature 129 | . 2 65 103 6 . . 107 24 14 . 221 135 . 96 Received Heat Transfer 1765 | . . 87 234 81 . . 99 13 29 . 442 675 . 105 Effects 8 | . . . 1 . . . 1 . . . 6 . . . Energy Bleed 1 | . . . . . . . . . . . 1 . . . Interference 2 | . . . 1 . . . 1 . . . . . . . Matter Decay 1 | . . . . . . . . . . . 1 . . . Short Circuit 1 | . . . . . . . . . . . 1 . . . Damage (major) 3 | . . . . . . . . . . . 3 . . . Siege Activations . | . . . . . . . . . . . . . . . Robots Corrupted . | . . . . . . . . . . . . . . . Combat Hostiles . | . . . . . . . . . . . . . . . Parts Fried . | . . . . . . . . . . . . . . . Impact Corruptions 1 | . . . . . . . . . . . 1 . . . Robots Melted 1 | . . . . . . . . . . . 1 . . . Combat Hostiles 1 | . . . . . . . . . . . 1 . . . Parts Melted 14 | . . . . . . . 4 2 2 . 6 . . . Heat Transferred 9515 | . 125 175 592 148 . . 2800 816 1265 . 3335 111 . 148 Parts Sabotaged . | . . . . . . . . . . . . . . . Parts Stolen . | . . . . . . . . . . . . . . . Parts Stripped . | . . . . . . . . . . . . . . . Power Chain Reactions . | . . . . . . . . . . . . . . . Alert | -11 -10 -10 -9 -9 -9 -8 -8 -7 -6 -5 -5 -4 -4 -4 ------- Run | Yrd Mat Min Mat Min Exi Min Mat Fac Fac Fac Gar Fac Was Fac Peak Influence 739 | . 74 228 343 193 . . 274 194 207 104 739 391 47 129 Initial 387 | . . 28 20 133 . . . 124 53 100 72 387 32 32 Average 207 | . 33 118 141 191 . . 59 86 111 100 433 314 36 67 Maximum Alert Level 3 | . . 1 1 . . . 1 . 1 . 3 1 . . Low Security (%) 64 | 100 100 81 68 100 . 100 85 100 98 100 13 31 100 100 Level 1 22 | . . 18 31 . . . 14 . 1 . 36 68 . . Level 2 8 | . . . . . . . . . . . 33 . . . Level 3 4 | . . . . . . . . . . . 17 . . . Level 4 . | . . . . . . . . . . . . . . . Level 5 . | . . . . . . . . . . . . . . . High Security . | . . . . . . . . . . . . . . . Max Security . | . . . . . . . . . . . . . . . Squads Dispatched 13 | . 2 . 2 . . . 2 4 1 . . 1 . 1 Investigation 5 | . 2 . . . . . 1 . 1 . . . . 1 Extermination 1 | . . . . . . . . 1 . . . . . . Reinforcement 5 | . . . 2 . . . 1 2 . . . . . . Assault . | . . . . . . . . . . . . . . . Garrison 2 | . . . . . . . . 1 . . . 1 . . Intercept . | . . . . . . . . . . . . . . . Searches Triggered . | . . . . . . . . . . . . . . . Construction Impeded . | . . . . . . . . . . . . . . . Haulers Reinforced 1 | . . . . . . . . 1 . . . . . . Active Scanning Responses . | . . . . . . . . . . . . . . . Cargo Convoy Interrupts . | . . . . . . . . . . . . . . . Stealth | -11 -10 -10 -9 -9 -9 -8 -8 -7 -6 -5 -5 -4 -4 -4 --------- Run | Yrd Mat Min Mat Min Exi Min Mat Fac Fac Fac Gar Fac Was Fac Distress Signals 6 | . . . 2 . . . 2 . . . . 2 . . Communications Jammed . | . . . . . . . . . . . . . . . Distress Signals . | . . . . . . . . . . . . . . . Times Spotted 126 | . 5 12 23 3 . . 13 7 8 . 27 15 4 9 Peak Tracking Total 12 | . 3 3 7 3 . . 4 2 3 . 5 12 4 6 Tactical Retreats 6 | . . 2 . . . . 1 . . . . 1 . 2 Traps | -11 -10 -10 -9 -9 -9 -8 -8 -7 -6 -5 -5 -4 -4 -4 ------- Run | Yrd Mat Min Mat Min Exi Min Mat Fac Fac Fac Gar Fac Was Fac Traps Triggered 21 | . 1 2 . . . . 3 1 1 . 12 1 . . Indirectly . | . . . . . . . . . . . . . . . Trap Hack Attempts . | . . . . . . . . . . . . . . . Triggered . | . . . . . . . . . . . . . . . Disarmed . | . . . . . . . . . . . . . . . Reprogrammed . | . . . . . . . . . . . . . . . Reused . | . . . . . . . . . . . . . . . Traps Extracted . | . . . . . . . . . . . . . . . Installed . | . . . . . . . . . . . . . . . Triggered . | . . . . . . . . . . . . . . . Machines | -11 -10 -10 -9 -9 -9 -8 -8 -7 -6 -5 -5 -4 -4 -4 ---------- Run | Yrd Mat Min Mat Min Exi Min Mat Fac Fac Fac Gar Fac Was Fac Machines Disabled 2 | . . . . . . . . . . . 2 . . . Max in Single Turn 1 | . . . . . . . . . . . 1 . . . Garrison Relay 1 | . . . . . . . . . . . 1 . . . Machines Repaired . | . . . . . . . . . . . . . . . Machines Dismantled . | . . . . . . . . . . . . . . . Machines Sabotaged . | . . . . . . . . . . . . . . . Overloaded Fab Kills . | . . . . . . . . . . . . . . . Hacking | -11 -10 -10 -9 -9 -9 -8 -8 -7 -6 -5 -5 -4 -4 -4 --------- Run | Yrd Mat Min Mat Min Exi Min Mat Fac Fac Fac Gar Fac Was Fac Machines Accessed 15 | . 3 1 . . . . 4 1 1 1 2 1 . 1 Terminals 12 | . 3 . . . . . 3 1 1 . 2 1 . 1 Fabricators . | . . . . . . . . . . . . . . . Repair Stations . | . . . . . . . . . . . . . . . Recycling Units . | . . . . . . . . . . . . . . . Scanalyzers 1 | . . . . . . . 1 . . . . . . . Garrison Access 1 | . . . . . . . . . . 1 . . . . Total Hacks 44 | . 13 1 . . . . 13 6 2 1 3 3 . 2 Successful 22 | . 7 1 . . . . 6 2 . 1 2 3 . . Failed 22 | . 6 . . . . . 7 4 2 . 1 . . 2 Catastrophic 5 | . 1 . . . . . 2 . . . . . . 2 Database Lockouts . | . . . . . . . . . . . . . . . Manual 36 | . 9 . . . 1 . 12 6 2 . 2 2 . 2 Terminals 41 | . 13 . . . . . 12 6 2 . 3 3 . 2 Fabricators . | . . . . . . . . . . . . . . . Repair Stations . | . . . . . . . . . . . . . . . Recycling Units . | . . . . . . . . . . . . . . . Scanalyzers 1 | . . . . . . . 1 . . . . . . . Garrison Access 1 | . . . . . . . . . . 1 . . . . Terminal Hacks 11 | . 4 1 . . . . 2 1 . . 1 2 . . Record 1 | . . . . . . . . . . . . 1 . . Robot Analysis 1 | . 1 . . . . . . . . . . . . . Open Door 2 | . . 1 . . . . . . . . 1 . . . Branch Access Points 3 | . 1 . . . . . 1 . . . . 1 . . Unreport Threat 2 | . . . . . . . 1 1 . . . . . . Recall Investigation 1 | . 1 . . . . . . . . . . . . . Zone Layout 1 | . 1 . . . . . . . . . . . . . Fabricator Hacks . | . . . . . . . . . . . . . . . Repair Station Hacks . | . . . . . . . . . . . . . . . Recycling Unit Hacks . | . . . . . . . . . . . . . . . Scanalyzer 1 | . . . . . . . 1 . . . . . . . Insert Component 1 | . . . . . . . 1 . . . . . . . Garrison Access Hacks 1 | . . . . . . . . . . 1 . . . . Unlock Access 1 | . . . . . . . . . . 1 . . . . Unauthorized Hacks 9 | . 3 . . . . . 3 1 . . 1 1 . . Terminals 9 | . 3 . . . . . 3 1 . . 1 1 . . Botnet 9 | . 3 . . . . . 3 1 . . 1 1 . . Fabricators . | . . . . . . . . . . . . . . . Repair Stations . | . . . . . . . . . . . . . . . Recycling Units . | . . . . . . . . . . . . . . . Scanalyzers . | . . . . . . . . . . . . . . . Garrison Access . | . . . . . . . . . . . . . . . Data Cores Recovered . | . . . . . . . . . . . . . . . Used . | . . . . . . . . . . . . . . . Hacking Detections 11 | . 3 . . . . . 3 1 1 1 1 . . 1 Full Trace Events 4 | . 2 . . . . . . . 1 . . . . 1 Feedback Events . | . . . . . . . . . . . . . . . Feedback Blocked . | . . . . . . . . . . . . . . . Robot Schematics Acquired . | . . . . . . . . . . . . . . . Robots Built . | . . . . . . . . . . . . . . . Authchips . | . . . . . . . . . . . . . . . Time . | . . . . . . . . . . . . . . . Total Robot Build Rating . | . . . . . . . . . . . . . . . Part Schematics Acquired . | . . . . . . . . . . . . . . . Parts Built . | . . . . . . . . . . . . . . . Authchips . | . . . . . . . . . . . . . . . Time . | . . . . . . . . . . . . . . . Total Part Build Rating . | . . . . . . . . . . . . . . . Parts Repaired . | . . . . . . . . . . . . . . . Time . | . . . . . . . . . . . . . . . Parts Recycled . | . . . . . . . . . . . . . . . Recycled Matter . | . . . . . . . . . . . . . . . Retrieved Matter . | . . . . . . . . . . . . . . . Retrieved Components . | . . . . . . . . . . . . . . . Parts Scanalyzed . | . . . . . . . . . . . . . . . Part Schematics Acquired . | . . . . . . . . . . . . . . . Parts Damaged . | . . . . . . . . . . . . . . . Bothacking | -11 -10 -10 -9 -9 -9 -8 -8 -7 -6 -5 -5 -4 -4 -4 ------------ Run | Yrd Mat Min Mat Min Exi Min Mat Fac Fac Fac Gar Fac Was Fac Used RIF Installer . | . . . . . . . . . . . . . . . Robots Hacked . | . . . . . . . . . . . . . . . Non-combat . | . . . . . . . . . . . . . . . Combat . | . . . . . . . . . . . . . . . Robot Hacks Applied . | . . . . . . . . . . . . . . . Relay Couplers Released 10 | . . . . . . . . . . . 6 4 . . Machine Destruction 3 | . . . . . . . . . . . 3 . . . Programmers 7 | . . . . . . . . . . . 3 4 . . Fabnet Peak Effective % . | . . . . . . . . . . . . . . . Robots Rewired 3 | . . . . . . . . 3 . . . . . . Allies Hacked . | . . . . . . . . . . . . . . . Hacks Repelled . | . . . . . . . . . . . . . . . Allies | -11 -10 -10 -9 -9 -9 -8 -8 -7 -6 -5 -5 -4 -4 -4 -------- Run | Yrd Mat Min Mat Min Exi Min Mat Fac Fac Fac Gar Fac Was Fac Total Allies 7 | . . 3 . . . . . 3 . . 1 . . . Largest Group 3 | . . 3 2 . . . . 3 3 2 2 . . . Highest-Rated Group 88 | . . 40 24 . . . . 88 88 72 72 . . . Highest-Rated Ally 40 | . . 16 16 . . . . 40 40 40 40 . . . Total Orders . | . . . . . . . . . . . . . . . Ally Attacks 70 | . . 9 34 . . . . 14 8 . 5 . . . Total Damage 1218 | . . 79 334 . . . . 346 208 . 251 . . . Kills 14 | . . 1 7 . . . . 2 1 . 3 . . . Allies Corrupted . | . . . . . . . . . . . . . . . Allies Melted . | . . . . . . . . . . . . . . . Intel | -11 -10 -10 -9 -9 -9 -8 -8 -7 -6 -5 -5 -4 -4 -4 ------- Run | Yrd Mat Min Mat Min Exi Min Mat Fac Fac Fac Gar Fac Was Fac Robot Analysis Total 1 | . 1 . . . . . . . . . . . . . Derelict Logs Recovered 3 | . . 1 . 2 . . . . . . . . . . Drone Launches . | . . . . . . . . . . . . . . . Drone Recoveries . | . . . . . . . . . . . . . . . Exploration | -11 -10 -10 -9 -9 -9 -8 -8 -7 -6 -5 -5 -4 -4 -4 ------------- Run | Yrd Mat Min Mat Min Exi Min Mat Fac Fac Fac Gar Fac Was Fac Turns Passed 6551 | 9 388 637 366 377 650 30 744 659 210 68 1563 585 36 229 Spaces Moved 4283 | 8 239 384 244 341 602 26 382 446 141 61 800 232 69 308 Core 319 | . . . . . . . . . . . . 79 69 171 Treads . | . . . . . . . . . . . . . . . Legs 742 | 8 239 145 . . . . . . . . 197 153 . . Wheels 3085 | . . 239 244 341 602 26 382 446 141 61 603 . . . Hover . | . . . . . . . . . . . . . . . Flight 137 | . . . . . . . . . . . . . . 137 Fastest Speed 40 | 120 120 115 105 105 105 120 120 101 110 110 95 50 50 40 Average Speed 120 | 120 148 143 110 105 107 120 120 111 110 110 145 155 50 65 Slowest Speed 1150 | 120 190 260 130 105 120 120 120 120 110 110 330 1150 50 550 Overloaded Moves . | . . . . . . . . . . . . . . . Propulsion Burnouts . | . . . . . . . . . . . . . . . Robots Hopped 3 | . . . . . . . . . . . . . . 3 Cave-ins Triggered . | . . . . . . . . . . . . . . . Exploration Rate (%) 33 | 2 40 79 26 48 91 13 27 15 3 2 68 9 68 7 Regions Visited 14 Branch Regions 4 Pre-discovered Areas 1 | . . . . 1 . . . . . . . . . . Known Exits Taken 2 | . 1 . . . . . . . . 1 . . . . Unknown Exits Taken 9 | 1 . 1 1 1 1 1 1 1 1 . . . . . Scrap Searched 3 | . . 1 . 2 . . . . . . . . . . Spaces Dug 5 | . . . . . . . . . . . . 5 . . Terrain Destroyed 10 | . . . . . . . . . . . 4 5 . 1 Melee . | . . . . . . . . . . . . . . . Projectile 7 | . . . . . . . . . . . 1 5 . 1 AOE 3 | . . . . . . . . . . . 3 . . . Terrain Rammed . | . . . . . . . . . . . . . . . Walls Destroyed . | . . . . . . . . . . . . . . . Machines Disabled . | . . . . . . . . . . . . . . . Actions | -11 -10 -10 -9 -9 -9 -8 -8 -7 -6 -5 -5 -4 -4 -4 --------- Run | Yrd Mat Min Mat Min Exi Min Mat Fac Fac Fac Gar Fac Was Fac Total 5270 | 7 252 430 301 348 608 25 635 580 182 62 1015 435 70 320 Wait 416 | . . 2 4 . . . 192 19 13 . 8 178 . . Move 4264 | 7 238 383 243 340 601 25 381 445 140 60 799 232 68 302 Hop 3 | . . . . . . . . . . . . . . 3 Pick Up 48 | . 1 12 5 1 . . 9 6 4 . 6 2 . 2 Fast Attach 39 | . 2 4 3 . 1 . 4 4 1 . 14 3 . 3 Attach 21 | . . 1 2 . 1 . . 1 . 2 8 2 1 3 Detach 3 | . . . . . 1 . . . . . 1 . . 1 Swap 40 | . 1 2 8 . 2 . 4 10 1 . 10 2 . . Drop 58 | . . 6 12 1 2 . 7 16 5 . 6 1 1 1 Fire 239 | . 9 20 23 6 . . 36 20 18 . 87 15 . 5 Melee . | . . . . . . . . . . . . . . . Ram 6 | . . . 1 . . . 2 3 . . . . . . Kick 1 | . 1 . . . . . . . . . . . . . Crush . | . . . . . . . . . . . . . . . Escape Stasis 82 | . . . . . . . . 8 . . 74 . . . Rewire 50 | . . . . . . . . 48 . . 2 . . . Trap . | . . . . . . . . . . . . . . . Miscellaneous . | . . . . . . . . . . . . . . . Route ------- -11/Scrapyard -10/Materials -10/Mines (discovered 2 exits: [*Mat x2]) -9/Materials -9/Mines (discovered 2 exits: *Mat / *Exi) -9/Exiles -8/Mines -8/Materials -7/Factory -6/Factory -5/Factory -5/Garrison (discovered 3 exits: *Fac x3) -4/Factory (discovered 5 exits: Upp x2 / Ext x2 / Arm) -4/Waste -4/Factory History --------- Turn | Location | Event 1 | -11/Scrapyard | Discovered new exit (range 1) 10 | -11/Scrapyard | Entered Materials 264 | -10/Materials | Identified exit to Mines 303 | -10/Materials | Build established: Mutant 398 | -10/Materials | Entered Mines 703 | -10/Mines | Met a Derelict who couldn't figure out how to use a Trap Extractor 794 | -10/Mines | Assisted by bots powering up and referring to "LRC-V3" 853 | -10/Mines | Learned Materials machine intel 962 | -10/Mines | Discovered new exit (range 6) 969 | -10/Mines | Discovered new exit (range 16) 1035 | -10/Mines | Entered Materials 1035 | -9/Materials | Accompanied by 2 allies 1035 | -9/Materials | Evolved 2 slots: Propulsion x1, Utility x1 1036 | -9/Materials | Loaded intel: 59 machine locations 1363 | -9/Materials | Discovered new exit (range 15) 1401 | -9/Materials | Entered Mines 1402 | -9/Mines | Met a Derelict bent on vengeance 1484 | -9/Mines | Discovered new exit (range 5) 1486 | -9/Mines | Learned Materials security intel 1771 | -9/Mines | Deemed a non-threat by the Exiles lab entrance 1772 | -9/Mines | Discovered new exit (range 5) 1778 | -9/Mines | Entered Exiles 1815 | -9/Exiles | Met 8R-AWN 1839 | -9/Exiles | Met EX-HEX 1885 | -9/Exiles | Met EX-BIN 1904 | -9/Exiles | Aligned with FarCom system 1906 | -9/Exiles | Given EX-Vault access code 1937 | -9/Exiles | Opened EX-Vault 1942 | -9/Exiles | Found Prototype Energy Cannon 1942 | -9/Exiles | Identified Gui. Plasma Cannon 1967 | -9/Exiles | Warned to stay clear of 0b10 Research branches 2003 | -9/Exiles | Met EX-DEC 2109 | -9/Exiles | Visited The Gauntlet 2354 | -9/Exiles | Discovered new exit (range 15) 2428 | -9/Exiles | Left Exiles lab with Gui. Plasma Cannon 2428 | -9/Exiles | Entered Mines 2452 | -8/Mines | Discovered new exit (range 4) 2458 | -8/Mines | Entered Materials 2458 | -8/Materials | Evolved 2 slots: Utility x2 3171 | -8/Materials | Discovered new exit (range 15) 3202 | -8/Materials | Entered Factory 3202 | -7/Factory | Evolved 2 slots: Utility x1, Weapon x1 3433 | -7/Factory | Garrison activated, responded to threat 3709 | -7/Factory | Build established: Scavenger-Skirmisher 3840 | -7/Factory | Discovered new exit (range 11) 3861 | -7/Factory | Entered another Factory area 3861 | -6/Factory | Accompanied by 3 allies 3861 | -6/Factory | Evolved 2 slots: Propulsion x1, Utility x1 4058 | -6/Factory | Discovered new exit (range 11) 4071 | -6/Factory | Entered another Factory area 4071 | -5/Factory | Accompanied by 2 allies 4071 | -5/Factory | Evolved 2 slots: Utility x2 4132 | -5/Factory | Identified exit to Garrison 4139 | -5/Factory | Entered Garrison 4139 | -5/Garrison | Accompanied by 2 allies 4156 | -5/Garrison | Triggered checkpoint 4270 | -5/Garrison | Triggered checkpoint 4286 | -5/Garrison | Build established: Scavenger-Tank 4406 | -5/Garrison | Triggered checkpoint 4469 | -5/Garrison | Triggered checkpoint 4503 | -5/Garrison | Lost 3 parts (1n1u1w) 4630 | -5/Garrison | Build established: Scavenger-Gunner 4651 | -5/Garrison | Discovered new exit (range 10) 4741 | -5/Garrison | Lost 5 parts (2p3u) 4860 | -5/Garrison | Triggered checkpoint 4913 | -5/Garrison | Garrison Relay disabled 4999 | -5/Garrison | Lost 3 parts (1n1u1w) 5003 | -5/Garrison | Discovered new exit (range 16) 5051 | -5/Garrison | Rescued a captive Derelict 5180 | -5/Garrison | Discovered new exit (range 9) 5420 | -5/Garrison | Triggered checkpoint 5611 | -5/Garrison | Build established: Scavenger-Skirmisher 5702 | -5/Garrison | Entered Factory 5702 | -4/Factory | Evolved 2 slots: Utility x2 6114 | -4/Factory | Identified exit to Upper Caves 6114 | -4/Factory | Identified exit to Extension 6114 | -4/Factory | Identified exit to Armory 6211 | -4/Factory | Garrison activated, responded to threat 6216 | -4/Factory | Spotted B-86 Titan 6246 | -4/Factory | Released all parts (4) 6247 | -4/Factory | Core integrity fell below 50% 6277 | -4/Factory | Lost 15 parts (2p3n7u3w) 6287 | -4/Factory | Sucked down chute 6287 | -4/Factory | Entered Waste 6290 | -4/Waste | Spotted C-40 Crusher 6293 | -4/Waste | Spotted C-40 Crusher 6306 | -4/Waste | Spotted C-40 Crusher 6311 | -4/Waste | Spotted C-40 Crusher 6311 | -4/Waste | Spotted C-40 Crusher 6314 | -4/Waste | Discovered new exit (range 16) 6315 | -4/Waste | Spotted C-40 Crusher 6323 | -4/Waste | Entered Factory 6518 | -4/Factory | Core integrity fell below 20% 6533 | -4/Factory | Released all parts (3) 6552 | -4/Factory | Destroyed by P-70 Sage with High-powered Shock Rifle Last Messages --------------- 06381_ K-01 Serf collects debris. 06401_ System corrupted: Substantial component data lost. 06409_ ALERT: All DSF locations entering lockdown mode. 06411_ Acquired Prototype Flight Unit. 06411_ Identified Cld. Field Propulsion Drive. 06423_ K-01 Serf collects debris. 06439_ Acquired Antimatter Reactor. 06444_ Acquired Railgun. 06459_ System corrupted: Component data lost. 06517_ Slug penetrates G-67 Veteran. 06523_ Slug penetrates Wall. 06526_ Slug penetrates G-67 Veteran. 06526_ Slug penetrates Wall. 06529_ Hvy. Laser destroyed. 06530_ System corrupted: Matter fused (-7). 06530_ Slug penetrates G-67 Veteran. 06530_ Slug penetrates Wall. 06533_ Released Railgun. 06533_ Released KE Penetrator. 06533_ Released Antimatter Reactor. Map ----- +----------------------------------------------------+ | ????????????????????????????????# # " | | ????????????????????????????????# # " | | ????????????????????????????????###########+##! " | | ??????????????????????????????????????????# ## | | ??????????????????????????????????????????# ## | | ??????????????????????????????????????????# ## "" | | ?????????????????????????????############## ## ""F | | ?????????????????????????????# # / "" | | ?????????????????????????????# # # | | ?????????????????????????????# # ##### | | ?????????????????????????????# """"" # | | ?????????????????????????????# """"" # | | ?????????????????????????????# """ + | | ?????????????????????????????# # | | ???????????????????????Y?????# """"" # | | ?????????????????????????????# """"" ######## | | ?????????????????????????????# """ #??????# | | ?????????????????????????????# #??????# | | ?????????????????????????????# #??????# | | ?????????????????????????????##############??????# | | ???????????? ###################?????????????????# | | ??????????? #?????????????????# | | ??????????? #?????????????????# | | ?????????? #???????????????### | | ????????H? ################# | | ?????????? @ | | ?????????? p ################# | | ?????????? #???????????????# | | ??????????? #############p#######?????????????# | | ????????????????????# #???????????##### | | ????????????????????# ! #???????????# | | ????????????????????# #???????????# | | ????????????????????# """ """ #???????????# " | | ????????????????????# """ """ #???????????# " | | ????????????????????# """ """ #???????????# " | | ????????????????????# #???????????# " | | ????????????????????# """ """ #???????????# | | ????????????????????# """ """ ? #???????????# " | | ????????????????????# ???" ""????#???????????# ? " | | ????????????????????# ???? ?????????????????????? | | ?????????????????????????? ?????????????????????? | | ??????????????????????????##?????????????????? | | ???????????????????????????????????????????????### | | ?????????????????????????????????????????????????? | | ?????????????????????????????????????????????????? | | ?????????????????????????????????????????????????? | | ?????????????????????????????????????????????????? | | | | | | | +----------------------------------------------------+ Best States ------------- Heat Dissipation 116 Energy Generation 21 Energy Capacity 325 Matter Stores 300 Matter Capacity 300 Sight Range 18 Robot Scan Range 15 Terrain Scan Density 10 Power Amplification 20 Base Temperature (-) 100 Armor Coverage 450 Resistance: KI 20 Core Shielding 20 Evasion (%) 62 Targeting Accuracy 14 Offensive Hacking 10 Item Schematics ----------------- None Robot Schematics ------------------ None Fabricated ------------ Nothing Alien Tech Used ----------------- None Achievements -------------- None Challenges ------------ None Game ------ Seed ShieldFocalNetwork Manual? 0 Play Time 00:56:43 Cumulative 99.9 hours Start 2024.04.08 @ 16:44:17 End 2024.04.08 @ 18:48:40 Sessions 1 Manual Loads 0 Difficulty Rogue Special Mode None Game No. 150 Rogue 138 Adventurer 10 Explorer 2 Win Type - Total 1 Types 1/0/0/0/0/0/0/0/0 Lore% 28 Gallery% 57 Achievement% 41 Wizard Run 0 Options --------- Layout 0 ASCII 0 Keyboard 0 Movement Arrows Keybinds 0 Fullscreen 1 Font 36/Smallcaps Map View 76x50 Zoom Use 0% Tactical HUD 1 Map Filters NONE Filters NONE Steam 1 RUN: 70388760-df43-4448-8619-eafbe94b18ea